bitfinex/quotes_SOLUSD_20251125
["timestamp","ask_amount","ask_price","bid_price","bid_amount"]
[1764045001427,16.308864,138.3,138.28,8.80994492]
[1764045001625,0.69,138.3,138.28,8.80994492]
[1764045001791,3.51927614,138.31,138.28,8.80994492]
[1764045001993,0.69,138.3,138.28,8.80994492]
[1764045004616,3.2,138.35,138.3,8.80994492]
[1764045004820,3.51927614,138.33,138.3,8.80994492]
[1764045005204,0.69,138.32,138.3,8.80994492]
[1764045005526,16.998864,138.32,138.3,8.80994492]
[1764045006318,16.308864,138.32,138.3,8.80994492]
[1764045006700,16.998864,138.32,138.3,8.80994492]
[1764045008704,0.69,138.32,138.3,8.80994492]
[1764045010824,0.69,138.32,138.3,16.04050617]
[1764045011916,0.69,138.35,138.32,8.80994492]
[1764045012106,0.69,138.34,138.32,8.80994492]
[1764045012508,0.69,138.35,138.32,8.80994492]
[1764045014126,4.20927614,138.35,138.32,8.80994492]
[1764045014301,0.69,138.34,138.32,8.80994492]
[1764045016601,4.20927614,138.34,138.32,8.80994492]
[1764045017038,0.69,138.33,138.32,8.80994492]
[1764045017745,4.20927614,138.33,138.27,7.2322268]
[1764045017906,3.51927614,138.31,138.28,12.00994492]
[1764045018234,3.51927614,138.31,138.28,8.80994492]
[1764045018536,0.69,138.3,138.28,19.2416428]
[1764045019226,0.69,138.3,138.28,8.80994492]
[1764045020210,4.20927614,138.3,138.28,8.80994492]
[1764045020405,3.51927614,138.29,138.27,8.80994492]
[1764045020619,4.20927614,138.28,138.25,12.00994492]
[1764045021022,0.69,138.27,138.25,12.00994492]
[1764045022325,0.69,138.27,138.25,19.2430977]
[1764045022530,0.69,138.27,138.25,12.00994492]
[1764045023015,0.69,138.27,138.25,19.24315077]
[1764045023812,3.51927614,138.29,138.25,19.24315077]
[1764045024012,0.7,138.28,138.25,19.95315077]
[1764045024728,0.7,138.28,138.25,19.24315077]
[1764045024933,0.7,138.28,138.25,19.95315077]
[1764045025133,16.308864,138.3,138.27,8.80994492]
[1764045025307,4.21927614,138.31,138.27,8.80994492]
[1764045025629,17.008864,138.31,138.27,0.71]
[1764045025843,0.7,138.33,138.29,16.04108882]
[1764045026043,0.7,138.33,138.31,8.80994492]
[1764045026343,4.21927614,138.35,138.31,8.80994492]
[1764045026547,17.008864,138.35,138.31,9.51994492]
[1764045026852,0.7,138.34,138.31,9.51994492]
[1764045027809,0.7,138.34,138.31,16.74959544]
[1764045028329,0.7,138.34,138.31,16.03959544]
[1764045029946,20.52814014,138.34,138.31,16.03959544]
[1764045030116,3.51927614,138.33,138.31,8.80994492]
[1764045030435,0.7,138.33,138.31,8.80994492]
[1764045030738,0.7,138.32,138.31,8.80994492]
[1764045031334,2.95236242,138.32,138.28,16.04144244]
[1764045031531,2.95236242,138.32,138.28,19.24144244]
[1764045031715,0.7,138.31,138.28,19.24144244]
[1764045032736,2.95236242,138.33,138.28,19.24144244]
[1764045033038,0.7,138.33,138.28,22.20380486]
[1764045033239,0.7,138.32,138.28,22.20380486]
[1764045033536,0.7,138.32,138.28,39.57306433]
[1764045033742,0.7,138.32,138.28,40.28306433]
[1764045034618,0.7,138.35,138.31,8.80994492]
[1764045034839,0.7,138.35,138.33,8.80994492]
[1764045035226,2.95236242,138.35,138.32,3.2]
[1764045035743,17.008864,138.34,138.32,3.2]
[1764045036545,19.26122642,138.34,138.32,3.2]
[1764045036747,19.26122642,138.34,138.3,16.04054304]
[1764045036748,18.56122642,138.34,138.3,16.04054304]
[1764045036920,16.308864,138.31,138.28,16.0416487]
[1764045037121,18.56122642,138.31,138.28,8.80994492]
[1764045037335,0.7,138.3,138.28,8.80994492]
[1764045038146,2.95236242,138.3,138.27,3.2]
[1764045038435,16.308864,138.29,138.28,8.80994492]
[1764045038645,17.008864,138.29,138.28,8.80994492]
[1764045038826,16.308864,138.29,138.28,8.80994492]
[1764045039448,0.7,138.34,138.28,19.00385614]
[1764045039654,17.008864,138.34,138.29,3.10452399]
[1764045039946,2.95236242,138.36,138.31,8.95210649]
[1764045040157,0.7,138.36,138.31,11.20446891]
[1764045040317,17.008864,138.36,138.33,8.80994492]
[1764045040733,0.7,138.35,138.33,8.80994492]
[1764045041542,2.95236242,138.35,138.33,8.80994492]
[1764045041745,2.25236242,138.34,138.32,8.80994492]
[1764045041953,2.95236242,138.34,138.32,8.80994492]
[1764045042137,0.7,138.33,138.32,8.80994492]
[1764045043049,19.26122642,138.34,138.32,8.80994492]
[1764045043355,0.7,138.34,138.32,8.80994492]
[1764045043762,16.308864,138.37,138.33,8.80994492]
[1764045044061,0.7,138.35,138.33,8.80994492]
[1764045047539,16.308864,138.37,138.31,32.33688173]
[1764045047763,17.008864,138.36,138.32,2.96236242]
[1764045047947,17.008864,138.36,138.33,8.80994492]
[1764045048152,0.7,138.35,138.32,7.93961249]
[1764045048354,0.7,138.35,138.32,7.22961249]
[1764045048562,2.25236242,138.34,138.32,8.80994492]
[1764045048769,18.56122642,138.34,138.32,8.80994492]
[1764045049063,0.7,138.33,138.3,16.04039397]
[1764045049249,0.7,138.33,138.3,19.24039397]
[1764045049450,0.7,138.33,138.31,8.80994492]
[1764045049965,2.25236242,138.32,138.28,7.23163828]
[1764045050173,2.25236242,138.31,138.28,8.80994492]
[1764045050659,0.7,138.31,138.28,8.80994492]
[1764045052066,0.7,138.31,138.28,16.04144437]
[1764045053863,2.95236242,138.31,138.28,8.80994492]
[1764045054460,2.91236242,138.31,138.28,8.80994492]
[1764045056373,0.68,138.3,138.28,8.80994492]
[1764045058261,2.93236242,138.31,138.28,16.04163933]
[1764045058849,2.25236242,138.31,138.28,16.04163933]
[1764045059048,0.68,138.3,138.28,16.04163933]
[1764045059456,2.93236242,138.31,138.28,16.04163933]
[1764045059657,0.68,138.3,138.28,16.04163933]
[1764045060053,0.68,138.3,138.28,8.80994492]
[1764045060260,2.93236242,138.31,138.28,16.04161592]
[1764045060576,0.68,138.3,138.28,16.04161592]
[1764045060782,0.68,138.34,138.3,8.80994492]
[1764045060966,2.93236242,138.34,138.3,8.80994492]
[1764045061167,18.56122642,138.33,138.3,12.00994492]
[1764045061480,19.24122642,138.33,138.3,12.00994492]
[1764045061684,16.988864,138.33,138.3,12.00994492]
[1764045061982,16.988864,138.33,138.3,19.24056561]
[1764045062585,16.988864,138.33,138.3,16.04056561]
[1764045062769,0.68,138.32,138.3,8.80994492]
[1764045063779,19.24122642,138.32,138.29,7.23106163]
[1764045063972,19.24122642,138.32,138.3,8.80994492]
[1764045064174,16.988864,138.32,138.3,8.80994492]
[1764045066479,16.308864,138.33,138.31,12.72994492]
[1764045066686,19.24122642,138.35,138.31,12.72994492]
[1764045066899,2.25236242,138.35,138.31,12.72994492]
[1764045067180,16.988864,138.34,138.31,12.72994492]
[1764045067382,16.308864,138.34,138.31,12.00994492]
[1764045067685,38.15636364,158.64,138.33,63.06230733]
[1764045067686,0.88,138.44,138.33,63.06230733]
[1764045067901,0.88,138.44,138.39,2.25236242]
[1764045068084,0.88,138.44,138.4,19.25537844]
[1764045068259,0.88,138.44,138.4,19.39754001]
[1764045068455,0.2,138.44,138.4,24.54562038]
[1764045068777,0.88,138.44,138.41,8.95210649]
[1764045069085,0.2,138.44,138.41,8.95210649]
[1764045069267,0.2,138.44,138.41,8.80994492]
[1764045069469,3.13236242,138.44,138.41,8.80994492]
[1764045069981,0.68,138.43,138.41,8.80994492]
[1764045070282,0.68,138.43,138.41,16.03456349]
[1764045070677,0.68,138.43,138.41,8.80994492]
[1764045070975,0.68,138.43,138.41,16.03481215]
[1764045072282,0.2,138.44,138.42,0.14216157]
[1764045073701,0.2,138.44,138.43,3.22]
[1764045074191,0.2,138.44,138.42,7.3660781]
[1764045074395,0.2,138.44,138.42,10.5860781]
[1764045075077,0.2,138.44,138.43,8.95210649]
[1764045075690,0.2,138.44,138.43,11.20446891]
[1764045076198,0.2,138.44,138.43,19.07085382]
[1764045076892,0.2,138.44,138.43,16.17597414]
[1764045078379,0.2,138.44,138.43,19.07085382]
[1764045078766,0.2,138.44,138.43,16.17597414]
[1764045079673,0.2,138.44,138.43,18.42833656]
[1764045080077,0.88,138.44,138.42,7.22426779]
[1764045080280,0.88,138.44,138.42,8.80994492]
[1764045080483,0.68,138.43,138.4,3.22]
[1764045080864,0.68,138.43,138.41,8.80994492]
[1764045082079,2.93236242,138.43,138.41,8.80994492]
[1764045082696,2.93236242,138.43,138.37,3.22]
[1764045082697,2.93236242,138.42,138.37,3.22]
[1764045082882,2.25236242,138.41,138.37,3.22]
[1764045083092,2.94236242,138.41,138.37,3.22]
[1764045083397,0.69,138.4,138.37,3.22]
[1764045084607,0.69,138.4,138.38,8.80994492]
[1764045086590,0.69,138.4,138.39,16.03590055]
[1764045086791,2.94236242,138.42,138.4,8.80994492]
[1764045086976,0.69,138.41,138.4,8.80994492]
[1764045087393,2.94236242,138.42,138.39,7.22595563]
[1764045087780,2.25236242,138.42,138.39,7.22595563]
[1764045087978,0.69,138.42,138.39,7.22595563]
[1764045090711,2.94236242,138.42,138.39,7.22595563]
[1764045091094,0.69,138.41,138.39,7.22595563]
[1764045092518,0.69,138.41,138.38,16.03627983]
[1764045092706,4.20542231,138.41,138.38,16.03627983]
[1764045093021,0.69,138.41,138.38,16.03627983]
[1764045093510,0.69,138.41,138.38,16.72627983]
[1764045095410,16.508864,138.44,138.38,34.79247436]
[1764045095601,4.20542231,138.43,138.39,0.83216157]
[1764045095808,0.69,138.43,138.39,0.83216157]
[1764045096006,0.69,138.42,138.39,0.14216157]
[1764045096604,0.69,138.42,138.4,7.22543352]
[1764045097010,0.69,138.43,138.41,8.80994492]
[1764045098627,4.20542231,138.43,138.41,8.80994492]
[1764045098793,0.69,138.42,138.41,8.80994492]
[1764045102323,3.51542231,138.43,138.41,8.80994492]
[1764045102515,0.2,138.44,138.41,7.22465338]
[1764045102699,0.2,138.44,138.43,16.03381257]
[1764045103397,0.2,138.44,138.43,16.72381257]
[1764045103603,0.2,138.44,138.43,20.38139645]
[1764045104731,0.2,138.44,138.43,21.10378321]
[1764045104913,0.2,138.44,138.43,37.41264721]
[1764045109018,0.2,138.44,138.43,33.8972249]
[1764045109214,0.2,138.44,138.43,37.41264721]
[1764045109931,0.89,138.44,138.43,8.80994492]
[1764045110230,4.40542231,138.44,138.4,7.22543352]
[1764045110432,4.20542231,138.43,138.4,7.22543352]
[1764045110736,4.20542231,138.43,138.41,8.80994492]
[1764045110909,4.20542231,138.42,138.39,3.2]
[1764045111333,0.69,138.41,138.4,8.80994492]
[1764045112010,0.69,138.41,138.29,21.72]
[1764045112225,3.51542231,138.38,138.35,8.80994492]
[1764045112399,3.51542231,138.38,138.34,7.22856729]
[1764045112599,0.69,138.37,138.34,7.22856729]
[1764045112799,0.69,138.37,138.35,8.80994492]
[1764045113204,0.7,138.38,138.35,7.22773481]
[1764045114027,0.7,138.38,138.36,8.80994492]
[1764045114236,0.7,138.38,138.36,16.03733714]
[1764045114834,0.7,138.38,138.36,8.80994492]
[1764045115724,4.21542231,138.38,138.36,8.80994492]
[1764045116535,0.72,138.37,138.36,8.80994492]
[1764045117554,0.2,138.44,138.37,8.95210649]
[1764045117710,0.72,138.41,138.39,8.80994492]
[1764045118326,4.23542231,138.43,138.39,8.80994492]
[1764045118526,0.72,138.42,138.39,16.03565096]
[1764045118913,0.72,138.42,138.39,8.80994492]
[1764045119320,0.72,138.42,138.39,16.03588716]
[1764045119637,0.72,138.42,138.39,8.80994492]
[1764045119849,0.72,138.42,138.39,16.03587675]
[1764045120719,16.308864,138.4,138.39,8.80994492]
[1764045121350,4.23542231,138.42,138.39,8.80994492]
[1764045121528,0.72,138.41,138.39,8.80994492]
[1764045121841,0.2,138.44,138.41,8.80994492]
[1764045121842,4.43542231,138.44,138.41,8.80994492]
[1764045122043,0.72,138.42,138.4,8.80994492]
[1764045122206,4.23542231,138.42,138.4,8.80994492]
[1764045122410,4.23542231,138.41,138.39,8.80994492]
[1764045122636,3.51542231,138.4,138.39,8.80994492]
[1764045122835,4.23542231,138.4,138.38,8.80994492]
[1764045123034,0.72,138.39,138.38,8.80994492]
[1764045123219,3.51542231,138.41,138.38,8.80994492]
[1764045123425,0.72,138.4,138.38,8.80994492]
[1764045125060,0.72,138.4,138.36,3.2]
[1764045125239,3.51542231,138.39,138.37,8.80994492]
[1764045125423,3.51542231,138.39,138.36,8.80994492]
[1764045125620,0.72,138.38,138.36,16.03746505]
[1764045135463,0.72,138.38,138.36,8.80994492]
[1764045137780,16.308864,138.39,138.37,0.67]
[1764045138057,0.72,138.42,138.38,8.80994492]
[1764045138430,3.51542231,138.43,138.39,0.14216157]
[1764045138629,3.71542231,138.44,138.39,4.01216157]
[1764045138865,0.92,138.44,138.39,7.52758388]
[1764045139063,0.2,138.44,138.41,8.80994492]
[1764045139461,0.2,138.44,138.43,8.80994492]
[1764045139762,0.2,138.44,138.43,16.17597414]
[1764045139939,0.2,138.44,138.43,20.36139645]
[1764045140138,0.2,138.44,138.43,16.84597414]
[1764045140338,0.2,138.44,138.43,16.17597414]
[1764045140855,0.2,138.44,138.43,16.84597414]
[1764045141353,0.2,138.44,138.43,20.36139645]
[1764045141537,0.2,138.44,138.43,16.84597414]
[1764045143264,0.2,138.44,138.43,20.36139645]
[1764045143967,0.2,138.44,138.43,16.17597414]
[1764045144139,0.2,138.44,138.43,16.86597414]
[1764045145571,0.2,138.44,138.43,20.38139645]
[1764045145745,0.2,138.44,138.43,16.86597414]
[1764045147043,0.2,138.44,138.43,20.38139645]
[1764045149062,1e-08,138.46,138.45,89.37247766]
[1764045149267,0.1998,138.5,138.46,8.80994492]
[1764045149492,0.1998,138.5,138.49,12.32536723]
[1764045149706,0.2,138.54,138.52,12.32536723]
[1764045149877,0.2,138.54,138.52,12.00994492]
[1764045150281,0.86,138.54,138.52,12.00994492]
[1764045150888,0.2,138.54,138.53,13.1575288]
[1764045151093,0.2,138.54,138.53,20.37618179]
[1764045152476,0.2,138.55,138.54,8.80994492]
[1764045152776,0.2,138.55,138.54,13.01536723]
[1764045153588,0.86,138.55,138.54,19.37023843]
[1764045153797,0.2,138.55,138.54,19.37023843]
[1764045155706,0.2,138.55,138.54,22.30432146]
[1764045155908,0.2,138.55,138.54,38.61318546]
[1764045156111,1e-08,138.55,138.54,60.33318546]
[1764045156317,1e-08,138.55,138.54,38.61318546]
[1764045156613,1e-08,138.57,138.56,8.95210649]
[1764045156796,0.1,138.61,138.57,0.14216157]
[1764045157112,0.1,138.61,138.6,14.29181583]
[1764045157304,0.76,138.61,138.6,8.95210649]
[1764045157493,0.1,138.61,138.6,19.3671137]
[1764045157889,0.1,138.61,138.6,25.39682304]
[1764045158605,0.76,138.61,138.56,0.69]
[1764045158917,5.33970934,138.6,138.56,0.69]
[1764045159283,5.90970934,138.6,138.56,0.69]
[1764045159687,0.57,138.6,138.56,7.90676426]
[1764045160098,5.43970934,138.61,138.57,0.69]
[1764045160619,5.43970934,138.61,138.58,8.80994492]
[1764045161202,5.33970934,138.6,138.58,8.80994492]
[1764045161402,5.33970934,138.59,138.58,8.80994492]
[1764045164519,5.33970934,138.59,138.56,8.80994492]
[1764045164520,0.57,138.59,138.56,8.80994492]
[1764045164722,5.33970934,138.57,138.48,8.80994492]
[1764045164908,5.33970934,138.55,138.52,8.80994492]
[1764045165110,5.33970934,138.56,138.53,0.14216157]
[1764045165425,5.33970934,138.56,138.52,12.69994492]
[1764045165625,5.33970934,138.56,138.53,0.69]
[1764045165802,5.33970934,138.56,138.55,8.80994492]
[1764045166008,0.57,138.58,138.55,8.80994492]
[1764045166222,5.33970934,138.56,138.55,8.80994492]
[1764045166815,5.33970934,138.56,138.53,0.14216157]
[1764045167035,5.33970934,138.54,138.53,8.80994492]
[1764045167823,5.90970934,138.55,138.53,8.80994492]
[1764045168925,5.90970934,138.55,138.52,12.00994492]
[1764045169502,5.33970934,138.54,138.53,8.80994492]
[1764045169903,0.57,138.55,138.53,8.80994492]
[1764045170128,16.878864,138.58,138.53,7.9084856]
[1764045170432,5.33970934,138.56,138.53,7.9084856]
[1764045171113,0.1,138.61,138.56,8.80994492]
[1764045171315,0.1,138.61,138.58,8.80994492]
[1764045171520,0.1,138.61,138.58,14.14965426]
[1764045171707,0.1,138.61,138.6,14.29181583]
[1764045172025,0.1,138.61,138.6,24.70682304]
[1764045172225,0.1,138.61,138.6,25.39682304]
[1764045172430,0.1,138.61,138.6,20.0571137]
[1764045173530,0.1,138.61,138.6,25.39682304]
[1764045174756,0.1,138.61,138.6,20.0571137]
[1764045175038,0.1,138.61,138.6,8.80994492]
[1764045177208,0.1,138.61,138.6,16.02495213]
[1764045177632,0.1,138.61,138.6,8.80994492]
[1764045180315,0.1,138.61,138.6,16.02495213]
[1764045180516,0.1,138.63,138.6,22.19682304]
[1764045180739,0.1,138.63,138.62,5.33970934]
[1764045180943,0.1,138.63,138.62,8.53970934]
[1764045181133,0.1,138.63,138.62,9.22970934]
[1764045181842,0.1,138.63,138.62,3.89]
[1764045182218,0.1,138.63,138.62,12.69994492]
[1764045182531,0.77,138.63,138.62,8.80994492]
[1764045182853,6.10970934,138.63,138.62,8.80994492]
[1764045183342,5.43970934,138.63,138.62,8.80994492]
[1764045183539,5.43970934,138.63,138.6,10.41479515]
[1764045183720,5.43970934,138.63,138.61,8.80994492]
[1764045184945,0.67,138.62,138.53,18.0398028]
[1764045185236,0.67,138.62,138.5,28.94007414]
[1764045185237,5.33970934,138.54,138.52,3.2]
[1764045185444,5.33970934,138.53,138.5,3.89]
[1764045185618,5.33970934,138.52,138.5,3.89]
[1764045186059,5.33970934,138.53,138.51,0.69]
[1764045186231,5.33970934,138.53,138.52,8.80994492]
[1764045187326,5.33970934,138.54,138.52,9.49994492]
[1764045187728,16.308864,138.56,138.54,8.80994492]
[1764045187921,5.33970934,138.56,138.54,8.80994492]
[1764045188247,5.33970934,138.56,138.54,9.49994492]
[1764045188949,5.33970934,138.55,138.54,9.49994492]
[1764045189246,5.33970934,138.56,138.54,7.74594492]
[1764045191052,5.33970934,138.55,138.54,7.74594492]
[1764045194164,5.33970934,138.56,138.54,7.74594492]
[1764045195552,5.33970934,138.55,138.54,7.74594492]
[1764045195744,5.33970934,138.55,138.5,3.2]
[1764045195745,5.33970934,138.55,138.5,0.69]
[1764045195970,5.33970934,138.51,138.49,8.80994492]
[1764045196150,5.33970934,138.5,138.49,8.80994492]
[1764045196636,5.33970934,138.51,138.49,9.49994492]
[1764045196837,5.33970934,138.51,138.49,8.80994492]
[1764045197039,5.33970934,138.51,138.49,9.51994492]
[1764045197254,5.33970934,138.51,138.49,8.80994492]
[1764045198375,5.33970934,138.51,138.49,16.03064567]
[1764045198745,5.33970934,138.51,138.49,16.74064567]
[1764045198946,5.33970934,138.51,138.49,9.51994492]
[1764045199360,5.33970934,138.5,138.49,8.80994492]
[1764045200557,6.00970934,138.5,138.48,3.2]
[1764045200872,6.00970934,138.49,138.46,16.03207355]
[1764045201077,5.33970934,138.48,138.46,16.03207355]
[1764045201242,5.33970934,138.48,138.46,16.74207355]
[1764045202166,5.33970934,138.49,138.47,0.71]
[1764045202544,5.33970934,138.5,138.47,0.71]
[1764045202964,16.308864,138.52,138.47,0.71]
[1764045202965,5.33970934,138.51,138.47,0.71]
[1764045203447,5.33970934,138.5,138.47,0.71]
[1764045203852,16.978864,138.52,138.47,0.71]
[1764045204048,5.33970934,138.5,138.47,7.9313391]
[1764045204259,5.33970934,138.49,138.47,7.9313391]
[1764045204459,5.33970934,138.49,138.47,7.9013391]
[1764045204954,5.33970934,138.49,138.46,16.03207125]
[1764045205156,5.33970934,138.48,138.46,16.71207125]
[1764045205356,5.33970934,138.51,138.47,0.68]
[1764045205653,5.33970934,138.5,138.47,0.68]
[1764045206049,5.33970934,138.5,138.48,7.22125938]
[1764045206561,5.33970934,138.5,138.48,7.90125938]
[1764045207067,5.33970934,138.51,138.49,8.80994492]
[1764045207857,16.308864,138.54,138.5,0.68]
[1764045208060,5.33970934,138.52,138.5,0.68]
[1764045208283,5.33970934,138.52,138.49,9.48994492]
[1764045209177,5.33970934,138.52,138.49,16.71028522]
[1764045210665,2.24648044,138.52,138.49,16.71028522]
[1764045210870,2.24648044,138.53,138.5,0.68]
[1764045212670,2.24648044,138.53,138.51,8.80994492]
[1764045213174,2.24648044,138.53,138.51,9.48994492]
[1764045213481,2.24648044,138.53,138.51,16.70947827]
[1764045213685,2.24648044,138.53,138.51,8.80994492]
[1764045213686,2.24648044,138.52,138.51,8.80994492]
[1764045215202,2.91648044,138.52,138.48,10.42081057]
[1764045215486,2.24648044,138.49,138.48,12.00994492]
[1764045216281,3.87,138.54,138.49,8.80994492]
[1764045216465,2.24648044,138.51,138.49,9.48994492]
[1764045216667,9.31311797,138.51,138.49,9.48994492]
[1764045217804,9.31311797,138.51,138.49,16.03044871]
[1764045217970,9.31311797,138.52,138.5,0.68]
[1764045218785,9.31311797,138.52,138.5,7.90010082]
[1764045218991,9.31311797,138.52,138.5,0.68]
[1764045219489,9.31311797,138.52,138.5,7.90017876]
[1764045219996,0.67,138.57,138.51,9.48994492]
[1764045220193,7.2145937,138.61,138.53,8.80994492]
[1764045220194,0.67,138.59,138.53,8.80994492]
[1764045220366,9.31311797,138.57,138.53,8.80994492]
[1764045220568,9.31311797,138.57,138.53,9.48994492]
[1764045220783,9.31311797,138.57,138.54,0.68]
[1764045220985,9.31311797,138.57,138.54,7.89810252]
[1764045221689,9.31311797,138.56,138.53,9.48994492]
[1764045221879,9.31311797,138.56,138.53,16.70840825]
[1764045222188,16.978864,138.57,138.53,16.70840825]
[1764045222397,9.31311797,138.56,138.53,16.70840825]
[1764045222781,9.31311797,138.56,138.54,7.89797634]
[1764045223296,16.978864,138.57,138.54,7.89797634]
[1764045223297,9.31311797,138.57,138.55,9.48994492]
[1764045223472,9.31311797,138.58,138.55,9.48994492]
[1764045223672,0.67,138.6,138.56,0.68]
[1764045223673,9.31311797,138.57,138.56,0.68]
[1764045223876,9.31311797,138.57,138.55,8.80994492]
[1764045224075,9.31311797,138.57,138.55,9.48994492]
[1764045224593,9.31311797,138.57,138.55,8.80994492]
[1764045224774,9.31311797,138.56,138.55,8.80994492]
[1764045227997,0.67,138.59,138.55,8.80994492]
[1764045228179,9.31311797,138.56,138.55,16.02753198]
[1764045228583,16.308864,138.58,138.55,16.02753198]
[1764045228786,9.31311797,138.56,138.55,16.70753198]
[1764045229109,9.31311797,138.57,138.55,16.70753198]
[1764045230304,9.31311797,138.57,138.56,0.68]
[1764045230476,9.31311797,138.57,138.55,16.70753198]
[1764045231378,9.31311797,138.56,138.55,16.02753198]
[1764045232177,9.31311797,138.57,138.55,16.02753198]
[1764045232579,9.31311797,138.57,138.55,16.70753198]
[1764045233402,16.308864,138.59,138.56,0.69]
[1764045233583,9.31311797,138.58,138.55,16.71753198]
[1764045233779,16.308864,138.59,138.57,8.80994492]
[1764045233985,9.31311797,138.6,138.57,8.80994492]
[1764045234282,9.31311797,138.6,138.58,7.90588129]
[1764045235787,0.67,138.59,138.56,16.71665337]
[1764045236000,9.31311797,138.59,138.56,16.02665337]
[1764045236300,9.31311797,138.59,138.57,0.69]
[1764045236711,16.308864,138.6,138.57,7.90641832]
[1764045236893,9.31311797,138.6,138.57,7.90641832]
[1764045237094,9.98311797,138.6,138.57,7.90641832]
[1764045237402,16.308864,138.6,138.58,0.72]
[1764045237591,25.62198197,138.6,138.58,0.72]
[1764045237788,16.308864,138.6,138.57,7.93641832]
[1764045237991,16.308864,138.6,138.57,0.72]
[1764045237992,9.31311797,138.59,138.57,0.72]
[1764045238601,16.308864,138.6,138.57,7.93654089]
[1764045238906,19.81511058,138.6,138.57,7.93654089]
[1764045239497,20.48511058,138.6,138.57,7.93654089]
[1764045240618,20.48511058,138.6,138.57,0.72]
[1764045240792,16.308864,138.57,138.52,0.72]
[1764045241113,3.50624658,138.56,138.53,12.72994492]
[1764045241293,3.50624658,138.55,138.53,3.2]
[1764045242212,4.17624658,138.54,138.49,7.94059587]
[1764045242395,3.50624658,138.51,138.49,7.94059587]
[1764045242593,3.50624658,138.51,138.5,8.80994492]
[1764045242990,3.50624658,138.54,138.5,7.94017275]
[1764045243302,3.50624658,138.53,138.52,8.80994492]
[1764045243501,3.50624658,138.53,138.5,16.03010014]
[1764045244098,3.50624658,138.53,138.52,8.80994492]
[1764045245593,19.81511058,138.54,138.52,8.80994492]
[1764045246710,3.50624658,138.53,138.52,8.80994492]
[1764045247216,4.17624658,138.53,138.5,8.80994492]
[1764045247714,3.50624658,138.53,138.5,9.52994492]
[1764045247920,4.17624658,138.53,138.5,8.80994492]
[1764045248220,3.50624658,138.52,138.5,8.80994492]
[1764045249319,3.50624658,138.51,138.49,8.80994492]
[1764045252727,16.308864,138.49,138.46,8.80994492]
[1764045253219,16.308864,138.5,138.48,8.80994492]
[1764045253723,19.81511058,138.5,138.48,8.80994492]
[1764045255813,19.81511058,138.5,138.47,0.72]
[1764045256710,3.50624658,138.51,138.48,8.80994492]
[1764045256905,16.308864,138.52,138.48,8.80994492]
[1764045257111,19.81511058,138.52,138.49,0.72]
[1764045257424,16.308864,138.52,138.49,7.94066776]
[1764045257931,3.50624658,138.53,138.49,7.94066776]
[1764045258140,3.50624658,138.53,138.5,0.72]
[1764045259632,3.50624658,138.53,138.5,7.94017714]
[1764045260513,3.50624658,138.53,138.5,0.72]
[1764045260831,3.50624658,138.52,138.5,0.72]
[1764045261726,0.67,138.54,138.5,0.72]
[1764045261942,3.50624658,138.53,138.5,7.94018814]
[1764045262123,3.50624658,138.54,138.5,7.94018814]
[1764045262343,0.67,138.56,138.51,0.72]
[1764045262513,3.50624658,138.54,138.51,0.72]
[1764045262938,20.178864,138.58,138.51,0.72]
[1764045263122,3.50624658,138.55,138.52,8.80994492]
[1764045263535,3.50624658,138.55,138.52,9.46994492]
[1764045263735,3.50624658,138.55,138.52,8.80994492]
[1764045263917,3.50624658,138.55,138.53,0.66]
[1764045265333,3.50624658,138.55,138.52,16.68903767]
[1764045265836,3.50624658,138.54,138.52,16.68903767]
[1764045266637,0.67,138.56,138.52,16.68903767]
[1764045266941,3.50624658,138.54,138.52,16.68903767]
[1764045267924,3.50624658,138.54,138.52,9.46994492]
[1764045268136,3.50624658,138.53,138.52,9.46994492]
[1764045268647,3.50624658,138.54,138.52,9.46994492]
[1764045269169,0.67,138.56,138.52,16.02910576]
[1764045269473,3.50624658,138.54,138.52,16.68910576]
[1764045270059,3.50624658,138.55,138.52,16.68910576]
[1764045271881,19.81511058,138.54,138.51,3.2]
[1764045272172,3.50624658,138.52,138.48,8.80994492]
[1764045272382,3.50624658,138.49,138.45,0.66]
[1764045272566,3.50624658,138.48,138.46,8.80994492]